[Event "Titled Tuesday Blitz July 25 Late 2023"]
[White "Tarhan, Adar"]
[Black "Georg, Heinz"]
[WhiteFideId "34544712"]
[BlackFideId "4607295"]
[WhiteElo "2563"]
[BlackElo "2272"]
[Result "1-0"]
[Round "1"]
[TimeControl "180+2"]
[Date "2023.07.25"]
[WhiteClock "0:01:35"]
[BlackClock "0:00:06"]
[Board "154"]

1. d4 {[%clk 0:02:57]}  e6 {[%clk 0:02:59]} 2. c3 {[%clk 0:02:57]}  f5 {[%clk 0:02:58]} 3. Nf3 {[%clk 0:02:55]}  Nf6 {[%clk 0:02:58]} 4. Bg5 {[%clk 0:02:55]}  b6 {[%clk 0:02:56]} 5. Nbd2 {[%clk 0:02:53]}  Bb7 {[%clk 0:02:56]} 6. g3 {[%clk 0:02:44]}  Be7 {[%clk 0:02:55]} 7. Bg2 {[%clk 0:02:44]}  O-O {[%clk 0:02:54]} 8. O-O {[%clk 0:02:44]}  d6 {[%clk 0:02:55]} 9. Re1 {[%clk 0:02:39]}  Nbd7 {[%clk 0:02:50]} 10. Bxf6 {[%clk 0:02:37]}  Nxf6 {[%clk 0:02:51]} 11. Ng5 {[%clk 0:02:17]}  Bxg2 {[%clk 0:02:32]} 12. Kxg2 {[%clk 0:02:18]}  Qd7 {[%clk 0:02:20]} 13. Qb3 {[%clk 0:02:16]}  d5 {[%clk 0:02:05]} 14. Ngf3 {[%clk 0:02:11]}  Bd6 {[%clk 0:01:52]} 15. Rad1 {[%clk 0:02:09]}  c5 {[%clk 0:01:29]} 16. c4 {[%clk 0:01:59]}  cxd4 {[%clk 0:01:19]} 17. Nxd4 {[%clk 0:02:00]}  Bc5 {[%clk 0:01:12]} 18. N2f3 {[%clk 0:01:58]}  Bxd4 {[%clk 0:01:10]} 19. Rxd4 {[%clk 0:01:56]}  Qd6 {[%clk 0:00:47]} 20. cxd5 {[%clk 0:01:47]}  e5 {[%clk 0:00:46]} 21. Rdd1 {[%clk 0:01:40]}  Rfd8 {[%clk 0:00:40]} 22. Ng5 {[%clk 0:01:37]}  Nxd5 {[%clk 0:00:32]} 23. e4 {[%clk 0:01:37]}  fxe4 {[%clk 0:00:32]} 24. Nxe4 {[%clk 0:01:35]}  Qc6 {[%clk 0:00:06]} 25. Nc3 {[%clk 0:01:35]} 1-0


[Site "https://www.chess.com"]

[Event "Titled Tuesday Blitz July 25 Late 2023"]
[White "Chemin, Justo Reinaldo"]
[Black "ATM622"]
[WhiteFideId "2101580"]
[WhiteElo "2259"]
[BlackElo "2560"]
[Result "0-1"]
[Round "1"]
[TimeControl "180+2"]
[Date "2023.07.25"]
[WhiteClock "0:00:21"]
[BlackClock "0:01:40"]
[Board "157"]

1. d4 {[%clk 0:02:57]}  Nf6 {[%clk 0:02:59]} 2. Nf3 {[%clk 0:02:56]}  e6 {[%clk 0:02:52]} 3. Bg5 {[%clk 0:02:54]}  d5 {[%clk 0:02:52]} 4. e3 {[%clk 0:02:53]}  c5 {[%clk 0:02:51]} 5. Nbd2 {[%clk 0:02:51]}  Nc6 {[%clk 0:02:51]} 6. c3 {[%clk 0:02:50]}  h6 {[%clk 0:02:51]} 7. Bh4 {[%clk 0:02:49]}  Be7 {[%clk 0:02:46]} 8. Bd3 {[%clk 0:02:48]}  b6 {[%clk 0:02:43]} 9. Qe2 {[%clk 0:02:46]}  Bb7 {[%clk 0:02:41]} 10. O-O {[%clk 0:02:39]}  O-O {[%clk 0:02:39]} 11. dxc5 {[%clk 0:02:35]}  bxc5 {[%clk 0:02:37]} 12. Bxf6 {[%clk 0:02:34]}  Bxf6 {[%clk 0:02:37]} 13. e4 {[%clk 0:02:35]}  c4 {[%clk 0:02:32]} 14. Bc2 {[%clk 0:02:31]}  Qc7 {[%clk 0:02:32]} 15. Rfe1 {[%clk 0:02:22]}  Ne5 {[%clk 0:02:30]} 16. Nxe5 {[%clk 0:02:19]}  Bxe5 {[%clk 0:02:30]} 17. g3 {[%clk 0:02:19]}  Rfe8 {[%clk 0:02:29]} 18. f4 {[%clk 0:02:18]}  Qb6+ {[%clk 0:02:26]} 19. Kg2 {[%clk 0:02:13]}  Qxb2 {[%clk 0:02:26]} 20. Ba4 {[%clk 0:02:03]}  Bxc3 {[%clk 0:02:24]} 21. Bxe8 {[%clk 0:01:45]}  Rxe8 {[%clk 0:02:21]} 22. Rab1 {[%clk 0:01:36]}  Qxd2 {[%clk 0:02:19]} 23. Qxd2 {[%clk 0:01:29]}  Bxd2 {[%clk 0:02:20]} 24. Re2 {[%clk 0:01:26]}  c3 {[%clk 0:02:15]} 25. Rxb7 {[%clk 0:01:04]}  c2 {[%clk 0:02:14]} 26. Rc7 {[%clk 0:00:59]}  c1=Q {[%clk 0:02:14]} 27. Rxc1 {[%clk 0:00:58]}  Bxc1 {[%clk 0:02:15]} 28. exd5 {[%clk 0:00:57]}  Kf8 {[%clk 0:02:14]} 29. dxe6 {[%clk 0:00:56]}  Rxe6 {[%clk 0:02:13]} 30. Rc2 {[%clk 0:00:57]}  Ba3 {[%clk 0:02:11]} 31. Rc8+ {[%clk 0:00:55]}  Re8 {[%clk 0:02:11]} 32. Rc7 {[%clk 0:00:55]}  Re2+ {[%clk 0:02:10]} 33. Kh3 {[%clk 0:00:53]}  a5 {[%clk 0:02:07]} 34. Ra7 {[%clk 0:00:45]}  Bb4 {[%clk 0:02:06]} 35. a3 {[%clk 0:00:45]}  Be1 {[%clk 0:02:05]} 36. a4 {[%clk 0:00:36]}  Re4 {[%clk 0:02:01]} 37. Ra8+ {[%clk 0:00:36]}  Ke7 {[%clk 0:02:00]} 38. Ra7+ {[%clk 0:00:36]}  Ke6 {[%clk 0:02:00]} 39. Ra6+ {[%clk 0:00:36]}  Kd5 {[%clk 0:01:59]} 40. Ra7 {[%clk 0:00:34]}  g5 {[%clk 0:01:46]} 41. Rxf7 {[%clk 0:00:28]}  gxf4 {[%clk 0:01:44]} 42. gxf4 {[%clk 0:00:26]}  Rxa4 {[%clk 0:01:44]} 43. Rh7 {[%clk 0:00:24]}  Rxf4 {[%clk 0:01:39]} 44. Rxh6 {[%clk 0:00:24]}  Rh4+ {[%clk 0:01:37]} 45. Rxh4 {[%clk 0:00:22]}  Bxh4 {[%clk 0:01:38]} 46. Kxh4 {[%clk 0:00:23]}  a4 {[%clk 0:01:39]} 47. Kg5 {[%clk 0:00:22]}  a3 {[%clk 0:01:40]} 48. h4 {[%clk 0:00:22]}  a2 {[%clk 0:01:40]} 49. h5 {[%clk 0:00:21]}  a1=Q {[%clk 0:01:40]} 0-1


[Site "https://www.chess.com"]

[Event "Titled Tuesday Blitz July 25 Late 2023"]
[White "Horobetz, Graham"]
[Black "Doluhanova, Evgeniya"]
[WhiteFideId "2047322"]
[BlackFideId "14112035"]
[WhiteElo "2555"]
[BlackElo "2253"]
[Result "1-0"]
[Round "1"]
[TimeControl "180+2"]
[Date "2023.07.25"]
[WhiteClock "0:00:07"]
[BlackClock "0:00:00"]
[Board "158"]

1. e4 {[%clk 0:03:00]}  c5 {[%clk 0:02:58]} 2. Nf3 {[%clk 0:02:56]}  d6 {[%clk 0:02:58]} 3. d4 {[%clk 0:02:55]}  cxd4 {[%clk 0:02:58]} 4. Nxd4 {[%clk 0:02:55]}  Nf6 {[%clk 0:02:58]} 5. Nc3 {[%clk 0:02:55]}  a6 {[%clk 0:02:58]} 6. f3 {[%clk 0:02:55]}  e5 {[%clk 0:02:58]} 7. Nb3 {[%clk 0:02:55]}  Be7 {[%clk 0:02:58]} 8. Be3 {[%clk 0:02:56]}  Be6 {[%clk 0:02:58]} 9. Qd2 {[%clk 0:02:53]}  Nbd7 {[%clk 0:02:58]} 10. O-O-O {[%clk 0:02:52]}  b5 {[%clk 0:02:57]} 11. Nd5 {[%clk 0:02:18]}  Nxd5 {[%clk 0:02:50]} 12. exd5 {[%clk 0:02:19]}  Bf5 {[%clk 0:02:50]} 13. Kb1 {[%clk 0:02:11]}  Rc8 {[%clk 0:02:49]} 14. Bd3 {[%clk 0:02:10]}  Bxd3 {[%clk 0:02:45]} 15. Qxd3 {[%clk 0:02:11]}  O-O {[%clk 0:02:44]} 16. g4 {[%clk 0:02:05]}  Bg5 {[%clk 0:02:40]} 17. h4 {[%clk 0:01:57]}  Bxe3 {[%clk 0:02:39]} 18. Qxe3 {[%clk 0:01:58]}  Nb6 {[%clk 0:02:39]} 19. Na5 {[%clk 0:01:56]}  Nc4 {[%clk 0:02:27]} 20. Nxc4 {[%clk 0:01:54]}  Rxc4 {[%clk 0:02:27]} 21. h5 {[%clk 0:01:42]}  h6 {[%clk 0:02:19]} 22. Rhe1 {[%clk 0:01:33]}  Rf4 {[%clk 0:02:16]} 23. Qa3 {[%clk 0:01:30]}  Qb6 {[%clk 0:02:12]} 24. Re4 {[%clk 0:01:27]}  Rxe4 {[%clk 0:01:48]} 25. fxe4 {[%clk 0:01:28]}  Rc8 {[%clk 0:01:47]} 26. Qf3 {[%clk 0:01:24]}  Qc5 {[%clk 0:01:39]} 27. c3 {[%clk 0:01:24]}  b4 {[%clk 0:01:39]} 28. Rc1 {[%clk 0:01:07]}  a5 {[%clk 0:01:39]} 29. c4 {[%clk 0:00:45]}  Qd4 {[%clk 0:01:34]} 30. Qe2 {[%clk 0:00:40]}  a4 {[%clk 0:01:28]} 31. Qc2 {[%clk 0:00:38]}  a3 {[%clk 0:01:21]} 32. b3 {[%clk 0:00:38]}  g6 {[%clk 0:01:13]} 33. Rd1 {[%clk 0:00:37]}  Qe3 {[%clk 0:01:11]} 34. Qd2 {[%clk 0:00:34]}  Qxe4+ {[%clk 0:01:05]} 35. Kc1 {[%clk 0:00:30]}  Qxg4 {[%clk 0:00:50]} 36. hxg6 {[%clk 0:00:29]}  fxg6 {[%clk 0:00:50]} 37. Qxh6 {[%clk 0:00:26]}  Qf4+ {[%clk 0:00:49]} 38. Qxf4 {[%clk 0:00:26]}  exf4 {[%clk 0:00:50]} 39. Re1 {[%clk 0:00:24]}  f3 {[%clk 0:00:39]} 40. Kd2 {[%clk 0:00:19]}  Rf8 {[%clk 0:00:36]} 41. Rg1 {[%clk 0:00:15]}  Kg7 {[%clk 0:00:36]} 42. Ke3 {[%clk 0:00:15]}  Re8+ {[%clk 0:00:22]} 43. Kxf3 {[%clk 0:00:15]}  Kf6 {[%clk 0:00:23]} 44. Rh1 {[%clk 0:00:13]}  Kf5 {[%clk 0:00:20]} 45. Rh7 {[%clk 0:00:12]}  g5 {[%clk 0:00:20]} 46. Rf7+ {[%clk 0:00:11]}  Kg6 {[%clk 0:00:20]} 47. Rd7 {[%clk 0:00:11]}  g4+ {[%clk 0:00:17]} 48. Kxg4 {[%clk 0:00:11]}  Re2 {[%clk 0:00:18]} 49. Rxd6+ {[%clk 0:00:10]}  Kf7 {[%clk 0:00:18]} 50. Rb6 {[%clk 0:00:10]}  Rxa2 {[%clk 0:00:18]} 51. Rb7+ {[%clk 0:00:10]}  Kf6 {[%clk 0:00:16]} 52. Rxb4 {[%clk 0:00:09]}  Rb2 {[%clk 0:00:11]} 53. Kf4 {[%clk 0:00:07]}  a2 {[%clk 0:00:10]} 54. Ra4 {[%clk 0:00:07]}  Rf2+ {[%clk 0:00:03]} 55. Ke4 {[%clk 0:00:07]}  Rb2 {[%clk 0:00:03]} 56. Kd4 {[%clk 0:00:07]}  Ke7 {[%clk 0:00:02]} 57. Kc5 {[%clk 0:00:06]}  Kd7 {[%clk 0:00:02]} 58. b4 {[%clk 0:00:06]}  Kc7 {[%clk 0:00:00]} 59. b5 {[%clk 0:00:07]} 1-0


[Site "https://www.chess.com"]

[Event "Titled Tuesday Blitz July 25 Late 2023"]
[White "Cardozo Munar, Carlos Eduardo"]
[Black "Dragomirescu, Robin-Alexandru"]
[WhiteFideId "4409477"]
[BlackFideId "1213849"]
[WhiteElo "2241"]
[BlackElo "2551"]
[Result "0-1"]
[Round "1"]
[TimeControl "180+2"]
[Date "2023.07.25"]
[WhiteClock "0:00:00"]
[BlackClock "0:00:08"]
[Board "163"]

1. e4 {[%clk 0:03:00]}  g6 {[%clk 0:02:54]} 2. Nf3 {[%clk 0:03:00]}  Nf6 {[%clk 0:02:52]} 3. Nc3 {[%clk 0:02:59]}  d5 {[%clk 0:02:46]} 4. exd5 {[%clk 0:02:46]}  Nxd5 {[%clk 0:02:46]} 5. Nxd5 {[%clk 0:02:47]}  Qxd5 {[%clk 0:02:45]} 6. d4 {[%clk 0:02:47]}  Bg7 {[%clk 0:02:43]} 7. c3 {[%clk 0:02:47]}  c5 {[%clk 0:02:34]} 8. dxc5 {[%clk 0:02:41]}  Qxc5 {[%clk 0:02:32]} 9. Be2 {[%clk 0:02:41]}  O-O {[%clk 0:02:31]} 10. O-O {[%clk 0:02:41]}  e5 {[%clk 0:02:25]} 11. Be3 {[%clk 0:02:40]}  Qc7 {[%clk 0:02:19]} 12. Qb3 {[%clk 0:02:39]}  Be6 {[%clk 0:02:13]} 13. Qc2 {[%clk 0:02:36]}  h6 {[%clk 0:02:10]} 14. Rad1 {[%clk 0:02:35]}  Nc6 {[%clk 0:02:08]} 15. Rfe1 {[%clk 0:02:35]}  Rfd8 {[%clk 0:02:06]} 16. h3 {[%clk 0:02:35]}  Nd4 {[%clk 0:02:02]} 17. Qc1 {[%clk 0:02:22]}  Nxe2+ {[%clk 0:01:57]} 18. Rxe2 {[%clk 0:02:23]}  Bxa2 {[%clk 0:01:57]} 19. Rxd8+ {[%clk 0:02:21]}  Rxd8 {[%clk 0:01:56]} 20. Bxh6 {[%clk 0:02:20]}  Bc4 {[%clk 0:01:52]} 21. Re1 {[%clk 0:02:20]}  f6 {[%clk 0:01:42]} 22. Bxg7 {[%clk 0:02:10]}  Kxg7 {[%clk 0:01:43]} 23. Rd1 {[%clk 0:02:07]}  b6 {[%clk 0:00:58]} 24. g4 {[%clk 0:01:42]}  e4 {[%clk 0:00:39]} 25. Rxd8 {[%clk 0:01:39]}  Qxd8 {[%clk 0:00:40]} 26. Qd2 {[%clk 0:01:38]}  Qc7 {[%clk 0:00:37]} 27. Nd4 {[%clk 0:01:33]}  Qe5 {[%clk 0:00:36]} 28. Nc6 {[%clk 0:01:24]}  Qc7 {[%clk 0:00:29]} 29. Nd4 {[%clk 0:01:19]}  a5 {[%clk 0:00:28]} 30. b3 {[%clk 0:01:19]}  Bf7 {[%clk 0:00:28]} 31. Nb5 {[%clk 0:01:07]}  Qe5 {[%clk 0:00:25]} 32. Qd7 {[%clk 0:01:02]}  Qe6 {[%clk 0:00:21]} 33. Qxe6 {[%clk 0:00:45]}  Bxe6 {[%clk 0:00:22]} 34. c4 {[%clk 0:00:45]}  a4 {[%clk 0:00:19]} 35. bxa4 {[%clk 0:00:44]}  Bxc4 {[%clk 0:00:19]} 36. Nd6 {[%clk 0:00:40]}  Bd3 {[%clk 0:00:19]} 37. Nc8 {[%clk 0:00:38]}  b5 {[%clk 0:00:16]} 38. axb5 {[%clk 0:00:39]}  Bxb5 {[%clk 0:00:16]} 39. Nd6 {[%clk 0:00:40]}  Bd3 {[%clk 0:00:16]} 40. f3 {[%clk 0:00:38]}  exf3 {[%clk 0:00:15]} 41. Kf2 {[%clk 0:00:38]}  Be2 {[%clk 0:00:16]} 42. Ne4 {[%clk 0:00:34]}  Kf7 {[%clk 0:00:11]} 43. Nd2 {[%clk 0:00:31]}  Ke6 {[%clk 0:00:12]} 44. Nxf3 {[%clk 0:00:32]}  Bb5 {[%clk 0:00:10]} 45. Ke3 {[%clk 0:00:31]}  Be8 {[%clk 0:00:10]} 46. h4 {[%clk 0:00:31]}  Kd5 {[%clk 0:00:09]} 47. Kf4 {[%clk 0:00:30]}  Ke6 {[%clk 0:00:07]} 48. g5 {[%clk 0:00:30]}  fxg5+ {[%clk 0:00:05]} 49. Kxg5 {[%clk 0:00:29]}  Kf7 {[%clk 0:00:06]} 50. Ne5+ {[%clk 0:00:28]}  Kg7 {[%clk 0:00:07]} 51. Ng4 {[%clk 0:00:27]}  Bf7 {[%clk 0:00:07]} 52. Nf6 {[%clk 0:00:27]}  Be6 {[%clk 0:00:06]} 53. Ne4 {[%clk 0:00:27]}  Bf7 {[%clk 0:00:06]} 54. Nd6 {[%clk 0:00:27]}  Be6 {[%clk 0:00:07]} 55. Ne8+ {[%clk 0:00:27]}  Kf7 {[%clk 0:00:07]} 56. Nf6 {[%clk 0:00:28]}  Kg7 {[%clk 0:00:07]} 57. Ne4 {[%clk 0:00:23]}  Bf7 {[%clk 0:00:07]} 58. Nc5 {[%clk 0:00:22]}  Bg8 {[%clk 0:00:07]} 59. Nd7 {[%clk 0:00:22]}  Bf7 {[%clk 0:00:08]} 60. Ne5 {[%clk 0:00:22]}  Be8 {[%clk 0:00:08]} 61. Kf4 {[%clk 0:00:00]}  Kf6 {[%clk 0:00:08]} 0-1


[Site "https://www.chess.com"]

[Event "Titled Tuesday Blitz July 25 Late 2023"]
[White "Sariego Figueredo, Wilfredo"]
[Black "Ismagilov, Damir"]
[WhiteFideId "3500080"]
[BlackFideId "34199982"]
[WhiteElo "2232"]
[BlackElo "2546"]
[Result "1-0"]
[Round "1"]
[TimeControl "180+2"]
[Date "2023.07.25"]
[WhiteClock "0:00:40"]
[BlackClock "0:00:17"]
[Board "165"]

1. d4 {[%clk 0:02:59]}  Nc6 {[%clk 0:02:56]} 2. Bf4 {[%clk 0:02:58]}  d5 {[%clk 0:02:50]} 3. Nf3 {[%clk 0:02:56]}  Bf5 {[%clk 0:02:45]} 4. c3 {[%clk 0:02:56]}  f6 {[%clk 0:02:42]} 5. e3 {[%clk 0:02:54]}  g5 {[%clk 0:02:37]} 6. Bg3 {[%clk 0:02:52]}  h5 {[%clk 0:02:37]} 7. h3 {[%clk 0:02:50]}  e6 {[%clk 0:02:36]} 8. Bd3 {[%clk 0:02:43]}  Nh6 {[%clk 0:02:33]} 9. O-O {[%clk 0:02:39]}  h4 {[%clk 0:02:26]} 10. Bh2 {[%clk 0:02:37]}  Bd6 {[%clk 0:02:24]} 11. Bxd6 {[%clk 0:02:35]}  Qxd6 {[%clk 0:02:25]} 12. Re1 {[%clk 0:02:33]}  O-O-O {[%clk 0:02:01]} 13. Qc2 {[%clk 0:02:20]}  g4 {[%clk 0:01:55]} 14. hxg4 {[%clk 0:02:11]}  Bxg4 {[%clk 0:01:44]} 15. Nbd2 {[%clk 0:02:03]}  e5 {[%clk 0:01:40]} 16. dxe5 {[%clk 0:01:59]}  fxe5 {[%clk 0:01:41]} 17. Be2 {[%clk 0:01:53]}  Bf5 {[%clk 0:01:36]} 18. Qa4 {[%clk 0:01:32]}  Ng4 {[%clk 0:01:35]} 19. e4 {[%clk 0:01:20]}  dxe4 {[%clk 0:01:32]} 20. Nxe4 {[%clk 0:01:21]}  Qg6 {[%clk 0:01:24]} 21. Nfg5 {[%clk 0:01:10]}  h3 {[%clk 0:01:10]} 22. Bxg4 {[%clk 0:01:11]}  Bxg4 {[%clk 0:01:08]} 23. Nd6+ {[%clk 0:01:04]}  Kb8 {[%clk 0:00:55]} 24. Qxg4 {[%clk 0:01:05]}  h2+ {[%clk 0:00:54]} 25. Kh1 {[%clk 0:01:04]}  Rxd6 {[%clk 0:00:53]} 26. Rad1 {[%clk 0:01:03]}  Rg8 {[%clk 0:00:51]} 27. Rxd6 {[%clk 0:00:59]}  cxd6 {[%clk 0:00:52]} 28. f4 {[%clk 0:00:50]}  exf4 {[%clk 0:00:53]} 29. Qxf4 {[%clk 0:00:50]}  Qxg5 {[%clk 0:00:48]} 30. Re8+ {[%clk 0:00:49]}  Kc7 {[%clk 0:00:45]} 31. Qf7+ {[%clk 0:00:49]}  Kb6 {[%clk 0:00:31]} 32. Rxg8 {[%clk 0:00:48]}  Ne5 {[%clk 0:00:29]} 33. Rxg5 {[%clk 0:00:46]}  Nxf7 {[%clk 0:00:29]} 34. Rg6 {[%clk 0:00:46]}  Kc6 {[%clk 0:00:25]} 35. Kxh2 {[%clk 0:00:46]}  Ne5 {[%clk 0:00:26]} 36. Rf6 {[%clk 0:00:45]}  Nc4 {[%clk 0:00:24]} 37. b3 {[%clk 0:00:44]}  Ne3 {[%clk 0:00:24]} 38. Rf4 {[%clk 0:00:44]}  Nd1 {[%clk 0:00:23]} 39. g4 {[%clk 0:00:42]}  Kd7 {[%clk 0:00:22]} 40. c4 {[%clk 0:00:42]}  Ne3 {[%clk 0:00:22]} 41. g5 {[%clk 0:00:41]}  d5 {[%clk 0:00:22]} 42. cxd5 {[%clk 0:00:41]}  Nxd5 {[%clk 0:00:23]} 43. Rd4 {[%clk 0:00:41]}  Ke6 {[%clk 0:00:23]} 44. Rxd5 {[%clk 0:00:40]}  Kxd5 {[%clk 0:00:24]} 45. g6 {[%clk 0:00:40]}  Ke6 {[%clk 0:00:24]} 46. Kg3 {[%clk 0:00:39]}  Kf6 {[%clk 0:00:24]} 47. Kf4 {[%clk 0:00:40]}  Kxg6 {[%clk 0:00:24]} 48. Ke5 {[%clk 0:00:41]}  Kf7 {[%clk 0:00:25]} 49. Kd6 {[%clk 0:00:42]}  a5 {[%clk 0:00:16]} 50. Kc7 {[%clk 0:00:41]}  b5 {[%clk 0:00:14]} 51. Kb6 {[%clk 0:00:41]}  a4 {[%clk 0:00:15]} 52. Kxb5 {[%clk 0:00:41]}  axb3 {[%clk 0:00:15]} 53. axb3 {[%clk 0:00:42]}  Ke6 {[%clk 0:00:15]} 54. Kc6 {[%clk 0:00:42]}  Ke7 {[%clk 0:00:15]} 55. Kc7 {[%clk 0:00:41]}  Ke6 {[%clk 0:00:16]} 56. b4 {[%clk 0:00:39]}  Kd5 {[%clk 0:00:17]} 57. b5 {[%clk 0:00:40]}  Kc5 {[%clk 0:00:17]} 58. b6 {[%clk 0:00:40]} 1-0


[Site "https://www.chess.com"]

[Event "Titled Tuesday Blitz July 25 Late 2023"]
[White "Ardila, Oscar Humberto"]
[Black "ElDivis"]
[WhiteFideId "4404742"]
[WhiteElo "2217"]
[BlackElo "2542"]
[Result "1-0"]
[Round "1"]
[TimeControl "180+2"]
[Date "2023.07.25"]
[WhiteClock "0:00:41"]
[BlackClock "0:00:06"]
[Board "169"]

1. d4 {[%clk 0:02:59]}  Nf6 {[%clk 0:02:59]} 2. c4 {[%clk 0:02:59]}  e6 {[%clk 0:02:58]} 3. Nc3 {[%clk 0:02:59]}  Bb4 {[%clk 0:02:56]} 4. Bd2 {[%clk 0:02:59]}  O-O {[%clk 0:02:56]} 5. Nf3 {[%clk 0:03:00]}  d5 {[%clk 0:02:56]} 6. e3 {[%clk 0:03:00]}  b6 {[%clk 0:02:53]} 7. cxd5 {[%clk 0:02:59]}  exd5 {[%clk 0:02:51]} 8. Bd3 {[%clk 0:02:59]}  Bb7 {[%clk 0:02:46]} 9. O-O {[%clk 0:02:57]}  a6 {[%clk 0:02:45]} 10. Rc1 {[%clk 0:02:41]}  Bd6 {[%clk 0:02:41]} 11. Ne5 {[%clk 0:02:41]}  Nbd7 {[%clk 0:02:39]} 12. f4 {[%clk 0:02:41]}  Ne4 {[%clk 0:02:35]} 13. Nxe4 {[%clk 0:02:24]}  dxe4 {[%clk 0:02:35]} 14. Bc4 {[%clk 0:02:21]}  Nf6 {[%clk 0:02:27]} 15. Be1 {[%clk 0:02:19]}  Nd5 {[%clk 0:02:15]} 16. Bf2 {[%clk 0:02:12]}  c5 {[%clk 0:01:54]} 17. dxc5 {[%clk 0:02:03]}  Bxc5 {[%clk 0:01:52]} 18. Qe2 {[%clk 0:02:02]}  f6 {[%clk 0:01:36]} 19. Bxd5+ {[%clk 0:01:47]}  Bxd5 {[%clk 0:01:16]} 20. Nc4 {[%clk 0:01:47]}  b5 {[%clk 0:01:00]} 21. Nd2 {[%clk 0:01:37]}  Qb6 {[%clk 0:00:47]} 22. Nb3 {[%clk 0:01:33]}  Bxb3 {[%clk 0:00:41]} 23. axb3 {[%clk 0:01:33]}  Rad8 {[%clk 0:00:36]} 24. Rfd1 {[%clk 0:01:30]}  Rxd1+ {[%clk 0:00:30]} 25. Rxd1 {[%clk 0:01:30]}  Rd8 {[%clk 0:00:30]} 26. h3 {[%clk 0:01:20]}  Rd6 {[%clk 0:00:20]} 27. Kh2 {[%clk 0:01:15]}  Qd8 {[%clk 0:00:20]} 28. Rc1 {[%clk 0:01:10]}  Bb6 {[%clk 0:00:19]} 29. Qg4 {[%clk 0:01:07]}  Qd7 {[%clk 0:00:17]} 30. f5 {[%clk 0:01:02]}  Rd2 {[%clk 0:00:14]} 31. Bg3 {[%clk 0:01:02]}  Rxb2 {[%clk 0:00:13]} 32. Qxe4 {[%clk 0:01:01]}  Rxb3 {[%clk 0:00:11]} 33. Qa8+ {[%clk 0:00:52]}  Kf7 {[%clk 0:00:09]} 34. Rc8 {[%clk 0:00:48]}  Rxe3 {[%clk 0:00:06]} 35. Rf8+ {[%clk 0:00:47]}  Ke7 {[%clk 0:00:06]} 36. Rg8 {[%clk 0:00:41]}  Rxg3 {[%clk 0:00:06]} 37. Qf8# {[%clk 0:00:41]} 1-0


[Site "https://www.chess.com"]

[Event "Titled Tuesday Blitz July 25 Late 2023"]
[White "Chlpik, Martin"]
[Black "Fiorito, Francisco"]
[WhiteFideId "14923351"]
[BlackFideId "180165"]
[WhiteElo "2211"]
[BlackElo "2538"]
[Result "0-1"]
[Round "1"]
[TimeControl "180+2"]
[Date "2023.07.25"]
[WhiteClock "0:00:47"]
[BlackClock "0:01:18"]
[Board "171"]

1. d4 {[%clk 0:02:59]}  Nf6 {[%clk 0:02:59]} 2. Nc3 {[%clk 0:02:58]}  c5 {[%clk 0:02:57]} 3. d5 {[%clk 0:02:56]}  g6 {[%clk 0:02:57]} 4. e4 {[%clk 0:02:56]}  d6 {[%clk 0:02:58]} 5. f3 {[%clk 0:02:55]}  e5 {[%clk 0:02:58]} 6. h4 {[%clk 0:02:54]}  Bg7 {[%clk 0:02:56]} 7. Be3 {[%clk 0:02:48]}  a6 {[%clk 0:02:55]} 8. a4 {[%clk 0:02:45]}  Nh5 {[%clk 0:02:54]} 9. Nge2 {[%clk 0:02:43]}  h6 {[%clk 0:02:50]} 10. g4 {[%clk 0:02:43]}  Nf6 {[%clk 0:02:49]} 11. Qd2 {[%clk 0:02:42]}  Bd7 {[%clk 0:02:39]} 12. Ng3 {[%clk 0:02:41]}  h5 {[%clk 0:02:35]} 13. g5 {[%clk 0:02:37]}  Nh7 {[%clk 0:02:33]} 14. Ra3 {[%clk 0:02:13]}  O-O {[%clk 0:02:31]} 15. a5 {[%clk 0:02:10]}  Re8 {[%clk 0:02:29]} 16. Nd1 {[%clk 0:02:07]}  Nf8 {[%clk 0:02:28]} 17. Rb3 {[%clk 0:02:06]}  Qc7 {[%clk 0:02:22]} 18. Rb6 {[%clk 0:02:04]}  Bc8 {[%clk 0:01:59]} 19. b4 {[%clk 0:02:04]}  cxb4 {[%clk 0:01:54]} 20. Qxb4 {[%clk 0:02:03]}  Nfd7 {[%clk 0:01:45]} 21. Qxd6 {[%clk 0:01:44]}  Qxd6 {[%clk 0:01:35]} 22. Rxd6 {[%clk 0:01:44]}  Bf8 {[%clk 0:01:36]} 23. Rf6 {[%clk 0:01:09]}  Nxf6 {[%clk 0:01:36]} 24. gxf6 {[%clk 0:01:09]}  Nd7 {[%clk 0:01:35]} 25. Bg5 {[%clk 0:01:08]}  Bb4+ {[%clk 0:01:33]} 26. c3 {[%clk 0:01:07]}  Bxa5 {[%clk 0:01:33]} 27. Rg1 {[%clk 0:01:07]}  Bd8 {[%clk 0:01:28]} 28. Nxh5 {[%clk 0:00:59]}  gxh5 {[%clk 0:01:24]} 29. Be3+ {[%clk 0:00:54]}  Kh8 {[%clk 0:01:20]} 30. Rg5 {[%clk 0:00:49]}  Nxf6 {[%clk 0:01:18]} 31. Rf5 {[%clk 0:00:47]}  Bxf5 {[%clk 0:01:18]} 0-1


[Site "https://www.chess.com"]

[Event "Titled Tuesday Blitz July 25 Late 2023"]
[White "Francisco_Ferrari"]
[Black "Janaszak, Dawid"]
[BlackFideId "1119206"]
[WhiteElo "2200"]
[BlackElo "2538"]
[Result "0-1"]
[Round "1"]
[TimeControl "180+2"]
[Date "2023.07.25"]
[WhiteClock "0:00:13"]
[BlackClock "0:01:34"]
[Board "173"]

1. d4 {[%clk 0:02:56]}  Nf6 {[%clk 0:02:58]} 2. Nf3 {[%clk 0:02:54]}  g6 {[%clk 0:02:57]} 3. e3 {[%clk 0:02:50]}  Bg7 {[%clk 0:02:58]} 4. Be2 {[%clk 0:02:47]}  O-O {[%clk 0:02:58]} 5. O-O {[%clk 0:02:47]}  b6 {[%clk 0:02:58]} 6. Nbd2 {[%clk 0:02:45]}  Bb7 {[%clk 0:02:59]} 7. c4 {[%clk 0:02:44]}  d6 {[%clk 0:02:59]} 8. b3 {[%clk 0:02:42]}  Nbd7 {[%clk 0:02:59]} 9. Bb2 {[%clk 0:02:42]}  e5 {[%clk 0:03:00]} 10. dxe5 {[%clk 0:02:32]}  Ng4 {[%clk 0:03:00]} 11. Qc2 {[%clk 0:02:27]}  Ndxe5 {[%clk 0:02:53]} 12. h3 {[%clk 0:02:22]}  Nxf3+ {[%clk 0:02:51]} 13. Nxf3 {[%clk 0:02:18]}  Ne5 {[%clk 0:02:47]} 14. Nxe5 {[%clk 0:02:15]}  dxe5 {[%clk 0:02:48]} 15. Rfd1 {[%clk 0:02:09]}  Qg5 {[%clk 0:02:48]} 16. Bf1 {[%clk 0:02:03]}  Bf3 {[%clk 0:02:36]} 17. Rd7 {[%clk 0:01:57]}  c5 {[%clk 0:02:36]} 18. Kh2 {[%clk 0:01:48]}  Bc6 {[%clk 0:02:33]} 19. Rd6 {[%clk 0:01:42]}  Rac8 {[%clk 0:02:33]} 20. Rad1 {[%clk 0:01:42]}  h5 {[%clk 0:02:29]} 21. Qd3 {[%clk 0:01:15]}  Rfe8 {[%clk 0:02:25]} 22. f3 {[%clk 0:00:58]}  e4 {[%clk 0:02:22]} 23. Qc2 {[%clk 0:00:50]}  exf3 {[%clk 0:02:18]} 24. Bxg7 {[%clk 0:00:46]}  Kxg7 {[%clk 0:02:11]} 25. gxf3 {[%clk 0:00:43]}  Rxe3 {[%clk 0:02:06]} 26. Qb2+ {[%clk 0:00:34]}  Kh7 {[%clk 0:02:01]} 27. Qf6 {[%clk 0:00:30]}  Qxf6 {[%clk 0:01:49]} 28. Rxf6 {[%clk 0:00:31]}  Kg7 {[%clk 0:01:50]} 29. Rdd6 {[%clk 0:00:19]}  Bxf3 {[%clk 0:01:49]} 30. Rf4 {[%clk 0:00:20]}  Be4 {[%clk 0:01:38]} 31. Rd7 {[%clk 0:00:18]}  Bf5 {[%clk 0:01:36]} 32. Rxa7 {[%clk 0:00:17]}  Rd8 {[%clk 0:01:37]} 33. Kg1 {[%clk 0:00:16]}  Rd4 {[%clk 0:01:34]} 34. Kf2 {[%clk 0:00:16]}  Rxf4+ {[%clk 0:01:33]} 35. Kxe3 {[%clk 0:00:13]}  Rxf1 {[%clk 0:01:34]} 0-1


[Site "https://www.chess.com"]